fUSD/lending_fUSD_20240328
["ID","MTS","AMOUNT","RATE_DAILY","PERIOD"]
[320876089,1711659032729,-7619.9024,0.00049015,2]
[320876090,1711659032739,-2500.0,0.00049015,2]
[320876091,1711659032748,-163.20704914,0.00049063,30]
[320876092,1711659032757,-163.32424619,0.00049065,2]
[320876093,1711659032766,-156.78572009,0.00049071,30]
[320876094,1711659032776,-150.23076923,0.00049072,30]
[320876095,1711659032787,-151.032905,0.00049088,58]
[320876096,1711659032796,-151.032905,0.00049098,59]
[320876097,1711659032805,-153.06504165,0.00049103,30]
[320876098,1711659032814,-151.032905,0.00049108,60]
[320876099,1711659032823,-161.81903191,0.00049115,14]
[320876100,1711659032833,-163.32424619,0.00049115,2]
[320876101,1711659032843,-20000.0,0.00049115,2]
[320876102,1711659032852,-76031.0037,0.00049115,2]
[320876103,1711659032861,-4087.006,0.00049115,2]
[320876104,1711659032870,-151.032905,0.00049118,61]
[320876105,1711659032879,-151.032905,0.00049128,62]
[320876106,1711659032889,-151.032905,0.00049138,63]
[320876107,1711659032898,-151.032905,0.00049148,64]
[320876108,1711659032908,-150.23076923,0.00049152,30]
[320876109,1711659032917,-151.032905,0.00049158,65]
[320876110,1711659032926,-163.32424619,0.00049165,2]
[320876111,1711659032935,-151.032905,0.00049168,66]
[320876112,1711659032946,-151.032905,0.00049178,67]
[320876113,1711659032955,-277.636697,0.00049179,30]
[320876114,1711659032964,-2117.86935,0.00049179,30]
[320876115,1711659032974,-226.796476,0.00049179,30]
[320876116,1711659032983,-151.032905,0.00049188,68]
[320876117,1711659032993,-154.75,0.00049189,2]
[320876118,1711659033002,-151.032905,0.00049198,69]
[320876119,1711659033012,-150.0,0.000492,9]
[320876120,1711659033022,-163.87,0.00049205,2]
[320876121,1711659033031,-322.33333333,0.00049205,120]
[320876122,1711659033041,-151.032905,0.00049208,70]
[320876123,1711659033050,-151.02532419,0.00049215,41]
[320876124,1711659033059,-165.26678839,0.00049215,2]
[320876125,1711659033068,-188.64924622,0.00049215,25]
[320876126,1711659033077,-163.32424619,0.00049215,2]
[320876127,1711659033086,-425.34097429,0.00049215,45]
[320876128,1711659033095,-510.81306838,0.00049215,2]
[320876129,1711659033105,-500.0,0.00049215,2]
[320876130,1711659033115,-245000.0,0.00049215,2]
[320876131,1711659033125,-3609.9506,0.00049215,2]
[320876132,1711659033134,-5000.0,0.00049215,3]
[320876133,1711659033143,-151.032905,0.00049218,71]
[320876134,1711659033152,-151.032905,0.00049228,72]
[320876135,1711659033161,-151.032905,0.00049238,73]
[320876136,1711659033171,-151.032905,0.00049248,74]
[320876137,1711659033181,-151.032905,0.00049258,75]
[320876138,1711659033191,-250.0,0.000493,120]
[320876139,1711659033200,-310.6,0.000493,120]
[320876140,1711659033209,-165.35,0.00049303,2]
[320876141,1711659033218,-219.44630914,0.00049305,2]
[320876142,1711659033228,-151.47788829,0.00049308,30]
[320876143,1711659033237,-249.37456808,0.00049312,2]
[320876144,1711659033247,-259.85717978,0.00049313,4]
[320876145,1711659033256,-194.24799481,0.00049313,4]
[320876146,1711659033265,-467.60568342,0.00049313,4]
[320876147,1711659033275,-1921.27100375,0.00049313,4]
[320876148,1711659033285,-806.30646681,0.00049313,4]
[320876149,1711659033295,-294.72243506,0.00049313,4]
[320876150,1711659033304,-3150.86868495,0.00049313,2]
[320876151,1711659033313,-1112.0,0.00049313,4]
[320876152,1711659033323,-20408.66831961,0.00049313,25]
[320876153,1711659033332,-286.5744089,0.00049314,4]
[320876154,1711659033341,-17140.77956363,0.00049314,7]
[320876155,1711659033350,-150.0,0.00049314,7]
[320876156,1711659033359,-500.0,0.00049315,120]
[320876157,1711659033368,-503.52710474,0.00049315,120]
[320876158,1711659033377,-500.0,0.00049315,120]
[320876159,1711659033386,-505.87192917,0.00049315,120]
[320876160,1711659033395,-504.48447864,0.00049315,120]
[320876161,1711659033404,-298.87299923,0.00049315,120]
[320876162,1711659033414,-621.85949724,0.00049315,120]
[320876163,1711659033599,-503.3755507,0.00049315,120]
[320876164,1711659033608,-183.40115617,0.00049315,120]
[320876165,1711659033618,-507.60398605,0.00049315,120]
[320876166,1711659033628,-503.18684153,0.00049315,120]
[320876167,1711659033638,-503.26699845,0.00049315,120]
[320876168,1711659033647,-507.09266203,0.00049315,120]
[320876169,1711659033657,-500.0,0.00049315,120]
[320876170,1711659033667,-501.35575469,0.00049315,120]
[320876171,1711659033676,-500.0,0.00049315,120]
[320876172,1711659033685,-501.33543139,0.00049315,120]
[320876173,1711659033695,-603.16884296,0.00049315,120]
[320876174,1711659033704,-500.0,0.00049315,120]
[320876175,1711659033713,-500.0,0.00049315,120]
[320876176,1711659033722,-500.0,0.00049315,120]
[320876177,1711659033731,-500.0,0.00049315,120]
[320876178,1711659033741,-500.0,0.00049315,120]
[320876179,1711659033750,-500.0,0.00049315,120]
[320876180,1711659033759,-500.0,0.00049315,120]
[320876181,1711659033769,-500.0,0.00049315,120]
[320876182,1711659033779,-500.0,0.00049315,120]
[320876183,1711659033788,-500.0,0.00049315,120]
[320876184,1711659033798,-319.40325791,0.00049315,2]
[320876185,1711659033807,-500.0,0.00049315,2]
[320876186,1711659033816,-200.62461209,0.00049315,21]
[320876187,1711659033825,-500.0,0.00049315,120]
[320876188,1711659033834,-500.0,0.00049315,120]
[320876189,1711659033843,-502.1970469,0.00049315,60]
[320876190,1711659033852,-582.92010287,0.00049315,120]
[320876191,1711659033861,-500.0,0.00049315,120]
[320876192,1711659033871,-500.0,0.00049315,120]
[320876193,1711659033881,-500.0,0.00049315,120]
[320876194,1711659033891,-503.15364317,0.00049315,120]
[320876195,1711659033902,-500.0,0.00049315,120]
[320876196,1711659033912,-503.78889922,0.00049315,120]
[320876197,1711659033922,-634.37478752,0.00049315,120]
[320876198,1711659033931,-500.54530369,0.00049315,120]
[320876199,1711659033940,-501.50986488,0.00049315,120]
[320876200,1711659033950,-500.0,0.00049315,120]
[320876201,1711659033958,-500.0,0.00049315,120]
[320876202,1711659033968,-500.0,0.00049315,120]
[320876203,1711659033979,-500.0,0.00049315,120]
[320876204,1711659033989,-500.0,0.00049315,120]
[320876205,1711659033999,-503.44870614,0.00049315,120]
[320876206,1711659034010,-500.0,0.00049315,120]
[320876207,1711659034019,-500.0,0.00049315,120]
[320876208,1711659034032,-505.12959713,0.00049315,120]
[320876209,1711659034042,-500.0,0.00049315,120]
[320876210,1711659034051,-500.0,0.00049315,120]
[320876211,1711659034060,-500.0,0.00049315,120]
[320876212,1711659034069,-500.0,0.00049315,120]
[320876213,1711659034078,-500.0,0.00049315,120]
[320876214,1711659034087,-500.0,0.00049315,120]
[320876215,1711659034097,-500.0,0.00049315,120]
[320876216,1711659034109,-502.9509233,0.00049315,120]
[320876217,1711659034119,-500.0,0.00049315,120]
[320876218,1711659034128,-504.51587485,0.00049315,120]
[320876219,1711659034137,-504.75302739,0.00049315,120]
[320876220,1711659034146,-502.17158652,0.00049315,120]
[320876221,1711659034154,-500.0,0.00049315,120]
[320876222,1711659034163,-500.0,0.00049315,120]
[320876223,1711659034172,-500.0,0.00049315,120]
[320876224,1711659034181,-500.0,0.00049315,120]
[320876225,1711659034190,-500.0,0.00049315,120]
[320876226,1711659034200,-500.0,0.00049315,120]
[320876227,1711659034210,-505.73324205,0.00049315,120]
[320876228,1711659034220,-500.0,0.00049315,120]
[320876229,1711659034230,-501.30441191,0.00049315,120]
[320876230,1711659034239,-500.0,0.00049315,120]
[320876231,1711659034248,-500.0,0.00049315,120]
[320876232,1711659034257,-500.0,0.00049315,120]
[320876233,1711659034267,-500.0,0.00049315,120]
[320876234,1711659034276,-500.0,0.00049315,120]
[320876235,1711659034286,-500.0,0.00049315,120]
[320876236,1711659034296,-500.0,0.00049315,120]
[320876237,1711659034305,-500.0,0.00049315,120]
[320876238,1711659034317,-500.0,0.00049315,120]
[320876239,1711659034326,-500.0,0.00049315,120]
[320876240,1711659034335,-500.0,0.00049315,120]
[320876241,1711659034345,-260.64851086,0.00049315,120]
[320876242,1711659034354,-500.0,0.00049315,120]
[320876243,1711659034363,-502.6417538,0.00049315,120]
[320876244,1711659034372,-502.52236805,0.00049315,120]
[320876245,1711659034381,-500.0,0.00049315,120]
[320876246,1711659034391,-500.0,0.00049315,120]
[320876247,1711659034400,-505.66849517,0.00049315,120]
[320876248,1711659034409,-503.94340592,0.00049315,120]
[320876249,1711659034418,-500.0,0.00049315,120]
[320876250,1711659034428,-500.0,0.00049315,120]
[320876251,1711659034437,-500.0,0.00049315,120]
[320876252,1711659034446,-502.22093104,0.00049315,120]
[320876253,1711659034457,-500.0,0.00049315,120]
[320876254,1711659034468,-500.0,0.00049315,120]
[320876255,1711659034478,-503.57137973,0.00049315,120]
[320876256,1711659034487,-500.0,0.00049315,120]
[320876257,1711659034496,-500.0,0.00049315,120]
[320876258,1711659034505,-500.0,0.00049315,120]
[320876259,1711659034514,-513.46622408,0.00049315,120]
[320876260,1711659034523,-500.0,0.00049315,120]
[320876261,1711659034531,-504.10628824,0.00049315,120]
[320876262,1711659034542,-503.06703947,0.00049315,120]
[320876263,1711659034551,-502.41015896,0.00049315,120]
[320876264,1711659034560,-504.4787654,0.00049315,120]
[320876265,1711659034568,-180.79400916,0.00049315,120]
[320876266,1711659034577,-504.96903325,0.00049315,120]
[320876267,1711659034586,-502.26629205,0.00049315,120]
[320876268,1711659034594,-504.59642627,0.00049315,120]
[320876269,1711659034603,-504.15811803,0.00049315,120]
[320876270,1711659034612,-450.22508634,0.00049315,120]
[320876271,1711659034621,-499.99647288,0.00049315,120]
[320876272,1711659034631,-500.95382047,0.00049315,120]
[320876273,1711659034639,-501.30092499,0.00049315,120]
[320876274,1711659034648,-501.67971599,0.00049315,120]
[320876275,1711659034657,-501.5216286,0.00049315,120]
[320876276,1711659034666,-500.0,0.00049315,120]
[320876277,1711659034675,-500.0,0.00049315,120]
[320876278,1711659034684,-500.0,0.00049315,120]
[320876279,1711659034693,-641.48564663,0.00049315,120]
[320876280,1711659034702,-504.34730069,0.00049315,120]
[320876281,1711659034712,-500.0,0.00049315,120]
[320876282,1711659034721,-579.81460755,0.00049315,120]
[320876283,1711659034732,-500.0,0.00049315,120]
[320876284,1711659034742,-155.42178894,0.00049315,120]
[320876285,1711659034752,-500.0,0.00049315,120]
[320876286,1711659034762,-500.0,0.00049315,120]
[320876287,1711659034772,-501.46085176,0.00049315,120]
[320876288,1711659034782,-500.0,0.00049315,120]
[320876289,1711659034792,-500.0,0.00049315,120]
[320876290,1711659034802,-501.37721257,0.00049315,120]
[320876291,1711659034812,-500.0,0.00049315,120]
[320876292,1711659034823,-500.0,0.00049315,120]
[320876293,1711659034835,-500.0,0.00049315,120]
[320876294,1711659034846,-500.0,0.00049315,120]
[320876295,1711659034856,-500.0,0.00049315,120]
[320876296,1711659034866,-415.95078869,0.00049315,120]
[320876297,1711659034877,-500.0,0.00049315,120]
[320876298,1711659034887,-504.86410079,0.00049315,120]
[320876299,1711659034897,-500.0,0.00049315,120]
[320876300,1711659034907,-527.2820317,0.00049315,120]
[320876301,1711659034918,-500.0,0.00049315,120]
[320876302,1711659034928,-384.76790661,0.00049315,120]
[320876303,1711659034938,-500.0,0.00049315,120]
[320876304,1711659034949,-500.0,0.00049315,120]
[320876305,1711659034958,-502.22796587,0.00049315,120]
[320876306,1711659034969,-500.0,0.00049315,120]
[320876307,1711659034979,-500.0,0.00049315,120]
[320876308,1711659034990,-500.0,0.00049315,2]
[320876309,1711659035002,-500.0,0.00049315,120]
[320876310,1711659035012,-500.0,0.00049315,120]
[320876311,1711659035024,-500.0,0.00049315,120]
[320876312,1711659035035,-268.05043919,0.00049315,120]
[320876313,1711659035045,-500.0,0.00049315,120]
[320876314,1711659035056,-501.43542409,0.00049315,120]
[320876315,1711659035067,-500.0,0.00049315,120]
[320876316,1711659035078,-500.0,0.00049315,120]
[320876317,1711659035089,-500.0,0.00049315,120]
[320876318,1711659035101,-500.0,0.00049315,120]
[320876319,1711659035112,-500.0,0.00049315,120]
[320876320,1711659035123,-502.40537414,0.00049315,120]
[320876321,1711659035132,-500.0,0.00049315,120]
[320876322,1711659035143,-500.0,0.00049315,2]
[320876323,1711659035153,-503.85418685,0.00049315,120]
[320876324,1711659035164,-500.0,0.00049315,2]
[320876325,1711659035174,-500.0,0.00049315,2]
[320876326,1711659035185,-500.0,0.00049315,2]
[320876327,1711659035195,-500.0,0.00049315,2]
[320876328,1711659035206,-506.74632378,0.00049315,2]
[320876329,1711659035217,-644.17549031,0.00049315,120]
[320876330,1711659035227,-500.0,0.00049315,120]
[320876331,1711659035238,-500.0,0.00049315,120]
[320876332,1711659035248,-500.0,0.00049315,120]
[320876333,1711659035258,-500.0,0.00049315,120]
[320876334,1711659035269,-500.77083923,0.00049315,120]
[320876335,1711659035278,-500.0,0.00049315,120]
[320876336,1711659035288,-503.33294896,0.00049315,30]
[320876337,1711659035297,-500.0,0.00049315,120]
[320876338,1711659035308,-512.13007944,0.00049315,120]
[320876339,1711659035318,-500.0,0.00049315,120]
[320876340,1711659035328,-500.0,0.00049315,120]
[320876341,1711659035338,-506.96302797,0.00049315,120]
[320876342,1711659035348,-502.64010388,0.00049315,120]
[320876343,1711659035357,-500.0,0.00049315,120]
[320876344,1711659035367,-500.0,0.00049315,120]
[320876345,1711659035376,-500.0,0.00049315,120]
[320876346,1711659035386,-500.0,0.00049315,120]
[320876347,1711659035395,-502.49540243,0.00049315,120]
[320876348,1711659035405,-500.0,0.00049315,120]
[320876349,1711659035414,-500.0,0.00049315,120]
[320876350,1711659035423,-500.0,0.00049315,120]
[320876351,1711659035434,-509.21650748,0.00049315,120]
[320876352,1711659035443,-500.0,0.00049315,120]
[320876353,1711659035453,-506.72165418,0.00049315,120]
[320876354,1711659035462,-502.51715408,0.00049315,120]
[320876355,1711659035472,-500.0,0.00049315,120]
[320876356,1711659035482,-500.0,0.00049315,120]
[320876357,1711659035492,-500.0,0.00049315,120]
[320876358,1711659035501,-500.0,0.00049315,120]
[320876359,1711659035510,-502.51510048,0.00049315,120]
[320876360,1711659035519,-500.0,0.00049315,120]
[320876361,1711659035529,-501.45816194,0.00049315,120]
[320876362,1711659035540,-500.0,0.00049315,120]
[320876363,1711659035549,-500.0,0.00049315,120]
[320876364,1711659035559,-500.0,0.00049315,120]
[320876365,1711659035569,-506.84691733,0.00049315,120]
[320876366,1711659035578,-500.0,0.00049315,120]
[320876367,1711659035588,-504.29426676,0.00049315,120]
[320876368,1711659035598,-500.0,0.00049315,120]
[320876369,1711659035608,-500.0,0.00049315,120]
[320876370,1711659035618,-500.0,0.00049315,120]
[320876371,1711659035627,-500.0,0.00049315,120]
[320876372,1711659035637,-507.68007672,0.00049315,120]
[320876373,1711659035646,-500.0,0.00049315,120]
[320876374,1711659035656,-500.0,0.00049315,120]
[320876375,1711659035665,-502.83634196,0.00049315,120]
[320876376,1711659035675,-500.0,0.00049315,120]
[320876377,1711659035684,-500.0,0.00049315,120]
[320876378,1711659035694,-638.47377254,0.00049315,120]
[320876379,1711659035703,-500.0,0.00049315,120]
[320876380,1711659035712,-500.0,0.00049315,120]
[320876381,1711659035721,-502.36390759,0.00049315,120]
[320876382,1711659035730,-500.0,0.00049315,120]
[320876383,1711659035740,-500.0,0.00049315,120]
[320876384,1711659035749,-500.0,0.00049315,120]
[320876385,1711659035758,-501.61863338,0.00049315,120]
[320876386,1711659035768,-500.0,0.00049315,120]
[320876387,1711659035777,-500.0,0.00049315,120]
[320876388,1711659035787,-637.11260864,0.00049315,120]
[320876389,1711659035796,-500.0,0.00049315,120]
[320876390,1711659035806,-500.0,0.00049315,120]
[320876391,1711659035815,-502.21441092,0.00049315,120]
[320876392,1711659035825,-500.0,0.00049315,120]
[320876393,1711659035835,-500.0,0.00049315,120]
[320876394,1711659035844,-500.0,0.00049315,120]
[320876395,1711659035853,-500.0,0.00049315,120]
[320876396,1711659035864,-500.0,0.00049315,120]
[320876397,1711659035873,-500.0,0.00049315,120]
[320876398,1711659035882,-201.31726621,0.00049315,120]
[320876399,1711659035892,-500.0,0.00049315,2]
[320876400,1711659035902,-500.0,0.00049315,120]
[320876401,1711659035911,-500.0,0.00049315,120]
[320876402,1711659035921,-502.19173494,0.00049315,120]
[320876403,1711659035930,-500.0,0.00049315,120]
[320876404,1711659035940,-500.0,0.00049315,120]
[320876405,1711659035949,-506.4365901,0.00049315,120]
[320876406,1711659035958,-500.0,0.00049315,120]
[320876407,1711659035967,-500.0,0.00049315,120]
[320876408,1711659035977,-500.0,0.00049315,120]
[320876409,1711659035986,-500.0,0.00049315,120]
[320876410,1711659035996,-500.0,0.00049315,120]
[320876411,1711659036053,-500.0,0.00049315,120]
[320876412,1711659036064,-151.22234802,0.00049315,120]
[320876413,1711659036074,-503.07907156,0.00049315,120]
[320876414,1711659036083,-500.0,0.00049315,120]
[320876415,1711659036093,-500.0,0.00049315,120]
[320876416,1711659036103,-384.33065719,0.00049315,120]
[320876417,1711659036112,-502.80558739,0.00049315,120]
[320876418,1711659036122,-500.0,0.00049315,120]
[320876419,1711659036131,-500.0,0.00049315,120]
[320876420,1711659036141,-503.81847993,0.00049315,120]
[320876421,1711659036151,-500.0,0.00049315,120]
[320876422,1711659036160,-501.50723725,0.00049315,120]
[320876423,1711659036170,-500.0,0.00049315,120]
[320876424,1711659036179,-302.58628854,0.00049315,120]
[320876425,1711659036189,-500.0,0.00049315,120]
[320876426,1711659036199,-500.0,0.00049315,120]
[320876427,1711659036209,-500.0,0.00049315,120]
[320876428,1711659036219,-500.0,0.00049315,120]
[320876429,1711659036229,-500.0,0.00049315,120]
[320876430,1711659036238,-500.0,0.00049315,120]
[320876431,1711659036248,-500.0,0.00049315,120]
[320876432,1711659036257,-500.0,0.00049315,120]
[320876433,1711659036267,-500.0,0.00049315,120]
[320876434,1711659036276,-500.0,0.00049315,120]
[320876435,1711659036285,-524.99775268,0.00049315,120]
[320876436,1711659036296,-500.0,0.00049315,120]
[320876437,1711659036305,-500.0,0.00049315,120]
[320876438,1711659036315,-505.81608288,0.00049315,120]
[320876439,1711659036324,-500.0,0.00049315,120]
[320876440,1711659036333,-500.0,0.00049315,120]
[320876441,1711659036342,-155.6661005,0.00049315,120]
[320876442,1711659036351,-500.0,0.00049315,120]
[320876443,1711659036360,-505.00318065,0.00049315,120]
[320876444,1711659036370,-500.0,0.00049315,120]
[320876445,1711659036380,-504.1436893,0.00049315,120]
[320876446,1711659036389,-500.0,0.00049315,120]
[320876447,1711659036398,-500.0,0.00049315,120]
[320876448,1711659036407,-501.34744825,0.00049315,120]
[320876449,1711659036417,-500.0,0.00049315,120]
[320876450,1711659036426,-500.0,0.00049315,120]
[320876451,1711659036436,-500.92181942,0.00049315,120]
[320876452,1711659036447,-500.0,0.00049315,120]
[320876453,1711659036457,-500.0,0.00049315,120]
[320876454,1711659036467,-500.0,0.00049315,120]
[320876455,1711659036477,-500.0,0.00049315,120]
[320876456,1711659036487,-500.0,0.00049315,120]
[320876457,1711659036497,-211.65442541,0.00049315,120]
[320876458,1711659036507,-500.0,0.00049315,120]
[320876459,1711659036517,-500.0,0.00049315,120]
[320876460,1711659036527,-443.05175561,0.00049315,120]
[320876461,1711659036540,-500.0,0.00049315,120]
[320876462,1711659036551,-500.0,0.00049315,120]
[320876463,1711659036561,-500.0,0.00049315,120]
[320876464,1711659036570,-591.35777916,0.00049315,120]
[320876465,1711659036580,-500.0,0.00049315,120]
[320876466,1711659036591,-500.0,0.00049315,120]
[320876467,1711659036600,-501.62095653,0.00049315,120]
[320876468,1711659036610,-500.0,0.00049315,120]
[320876469,1711659036620,-500.0,0.00049315,120]
[320876470,1711659036629,-504.47366724,0.00049315,120]
[320876471,1711659036639,-500.0,0.00049315,120]
[320876472,1711659036649,-500.0,0.00049315,120]
[320876473,1711659036659,-503.07587438,0.00049315,120]
[320876474,1711659036669,-500.0,0.00049315,120]
[320876475,1711659036679,-500.0,0.00049315,120]
[320876476,1711659036688,-500.0,0.00049315,120]
[320876477,1711659036698,-500.0,0.00049315,120]
[320876478,1711659036707,-500.0,0.00049315,120]
[320876479,1711659036716,-500.0,0.00049315,120]
[320876480,1711659036726,-500.0,0.00049315,120]
[320876481,1711659036735,-502.72724782,0.00049315,7]
[320876482,1711659036745,-500.0,0.00049315,120]
[320876483,1711659036755,-500.0,0.00049315,120]
[320876484,1711659036764,-500.0,0.00049315,120]
[320876485,1711659036774,-500.0,0.00049315,120]
[320876486,1711659036783,-500.0,0.00049315,120]
[320876487,1711659036794,-503.96584081,0.00049315,120]
[320876488,1711659036803,-500.0,0.00049315,120]
[320876489,1711659036812,-500.0,0.00049315,120]
[320876490,1711659036821,-500.0,0.00049315,120]
[320876491,1711659036831,-500.0,0.00049315,120]
[320876492,1711659036840,-500.0,0.00049315,120]
[320876493,1711659036850,-505.12855246,0.00049315,120]
[320876494,1711659036859,-500.0,0.00049315,120]
[320876495,1711659036868,-500.0,0.00049315,120]
[320876496,1711659036877,-500.0,0.00049315,120]
[320876497,1711659036886,-502.54311821,0.00049315,120]
[320876498,1711659036895,-500.0,0.00049315,120]
[320876499,1711659036905,-500.0,0.00049315,120]
[320876500,1711659036914,-500.0,0.00049315,120]
[320876501,1711659036923,-502.52626021,0.00049315,120]
[320876502,1711659036933,-500.0,0.00049315,120]
[320876503,1711659036941,-500.0,0.00049315,120]
[320876504,1711659036951,-500.0,0.00049315,120]
[320876505,1711659036960,-500.0,0.00049315,120]
[320876506,1711659036970,-500.0,0.00049315,120]
[320876507,1711659036979,-559.13,0.00049315,120]
[320876508,1711659036989,-1000.0,0.00049315,2]
[320876509,1711659036999,-500.0,0.00049315,120]
[320876510,1711659037008,-500.0,0.00049315,120]
[320876511,1711659037020,-500.0,0.00049315,120]
[320876512,1711659037032,-500.0,0.00049315,120]
[320876513,1711659037043,-500.0,0.00049315,120]
[320876514,1711659037052,-500.0,0.00049315,120]
[320876515,1711659037062,-500.0,0.00049315,120]
[320876516,1711659037071,-500.0,0.00049315,120]
[320876517,1711659037079,-500.0,0.00049315,120]
[320876518,1711659037089,-500.0,0.00049315,120]
[320876519,1711659037099,-605.92601376,0.00049315,120]
[320876520,1711659037109,-500.0,0.00049315,120]
[320876521,1711659037119,-500.0,0.00049315,120]
[320876522,1711659037129,-170.2282901,0.00049315,120]
[320876523,1711659037138,-500.0,0.00049315,120]
[320876524,1711659037147,-500.0,0.00049315,120]
[320876525,1711659037157,-500.0,0.00049315,120]
[320876526,1711659037165,-500.0,0.00049315,120]
[320876527,1711659037174,-500.0,0.00049315,120]
[320876528,1711659037184,-500.0,0.00049315,120]
[320876529,1711659037193,-500.0,0.00049315,120]
[320876530,1711659037202,-500.0,0.00049315,120]
[320876531,1711659037211,-500.0,0.00049315,120]
[320876532,1711659037220,-500.0,0.00049315,120]
[320876533,1711659037230,-502.56403856,0.00049315,120]
[320876534,1711659037240,-500.0,0.00049315,120]
[320876535,1711659037249,-226.82069499,0.00049315,120]
[320876536,1711659037259,-500.0,0.00049315,120]
[320876537,1711659037268,-508.23284357,0.00049315,120]
[320876538,1711659037277,-500.0,0.00049315,120]
[320876539,1711659037289,-500.0,0.00049315,120]
[320876540,1711659037298,-501.19004871,0.00049315,120]
[320876541,1711659037308,-500.0,0.00049315,120]
[320876542,1711659037318,-500.0,0.00049315,120]
[320876543,1711659037327,-500.0,0.00049315,120]
[320876544,1711659037337,-500.0,0.00049315,120]
[320876545,1711659037346,-500.0,0.00049315,120]
[320876546,1711659037356,-504.41408799,0.00049315,120]
[320876547,1711659037366,-500.0,0.00049315,120]
[320876548,1711659037375,-500.0,0.00049315,120]
[320876550,1711659037384,-500.0,0.00049315,120]
[320876552,1711659037394,-500.0,0.00049315,120]
[320876554,1711659037403,-500.0,0.00049315,120]
[320876555,1711659037412,-500.0,0.00049315,120]
[320876557,1711659037422,-500.0,0.00049315,120]
[320876558,1711659037431,-500.0,0.00049315,120]
[320876559,1711659037440,-500.0,0.00049315,120]
[320876560,1711659037449,-500.0,0.00049315,120]
[320876561,1711659037458,-500.0,0.00049315,120]
[320876562,1711659037468,-500.0,0.00049315,120]
[320876564,1711659037478,-500.0,0.00049315,120]
[320876567,1711659037497,-500.0,0.00049315,120]
[320876570,1711659037509,-500.0,0.00049315,120]
[320876571,1711659037518,-500.0,0.00049315,120]
[320876573,1711659037528,-500.0,0.00049315,120]
[320876574,1711659037538,-640.29915416,0.00049315,120]
[320876575,1711659037547,-500.0,0.00049315,120]
[320876576,1711659037557,-500.0,0.00049315,120]
[320876577,1711659037566,-504.85261154,0.00049315,120]
[320876578,1711659037576,-500.0,0.00049315,120]
[320876579,1711659037585,-500.0,0.00049315,120]
[320876580,1711659037595,-500.0,0.00049315,120]
[320876581,1711659037604,-501.54506847,0.00049315,120]
[320876582,1711659037614,-368.91754134,0.00049315,120]
[320876717,1711659039268,-131.08245866,0.00049315,120]
[320876720,1711659039289,-503.78013634,0.00049315,120]
[320876722,1711659039300,-139.30781948,0.00049315,120]
[320876725,1711659039314,-360.69218052,0.00049315,120]
[320876727,1711659039325,-500.0,0.00049315,120]
[320876729,1711659039335,-500.0,0.00049315,120]
[320876731,1711659039345,-428.23689708,0.00049315,120]
[320876734,1711659039359,-76.96775636,0.00049315,120]
[320876736,1711659039369,-501.1003039,0.00049315,120]
[320876738,1711659039379,-500.0,0.00049315,120]
[320876740,1711659039389,-503.27943369,0.00049315,120]
[320876742,1711659039400,-500.0,0.00049315,120]
[320876744,1711659039411,-500.0,0.00049315,120]
[320876746,1711659039421,-447.06197953,0.00049315,120]
[320876748,1711659039435,-52.93802047,0.00049315,120]
[320876749,1711659039445,-500.0,0.00049315,120]